[Event "World Junior U20 Open 2018"]
[Site "Gebze"]
[Date "2018.09.07"]
[Round "3.77"]
[White "Erdogan, Anil Berk"]
[Black "Akdogan, Alperen"]
[Result "1-0"]
[ECO "B03"]
[WhiteElo "2083"]
[BlackElo "2278"]
[Annotator "NA"]
[PlyCount "69"]
[EventDate "2018.09.05"]
[EventType "swiss"]
[EventCountry "TUR"]
[SourceTitle "playchess.com"]
[Source "ChessBase"]
[SourceQuality "1"]
[TimeControl "40/5400+30:1800+30"]

1. e4 {[%emt 0:00:30]} Nf6 {[%emt 0:00:30]} 2. e5 {[%emt 0:00:30]} Nd5 {[%emt 0:00:30]} 3. c4 {[%emt 0:00:00]} Nb6 {[%emt 0:00:00]} 4. d4 {[%emt 0:00:00]} d6 {[%emt 0:00:00]} 5. f4 {[%emt 0:00:00]} dxe5 {[%emt 0:00:30]} 6. fxe5 {[%emt 0:00:00]} Bf5 {[%emt 0:00:00]} 7. Nc3 {[%emt 0:00:00]} e6 {[%emt 0:00:00]} 8. Be3 {[%emt 0:01:00]} Bb4 {[%emt 0:00:00]} 9. Nf3 {[%emt 0:15:30]} c5 {[%emt 0:07:00]} 10. dxc5 {[%emt 0:14:30]} Qxd1+ {[%emt 0:03:30]} 11. Kxd1 {[%emt 0:07:30]} Bxc3 $1 {[%emt 0:02:30]} 12. bxc3 {[%emt 0:00:30]} Na4 {[%emt 0:00:30]} 13. Nd4 {[%emt 0:09:30]} Nxc3+ {[%emt 0:14:30]} 14. Ke1 {[%emt 0:00:30]} Nc6 {[%emt 0:28:30]} 15. Nb5 $15 {[%emt 0:15:30]} Nb4 {[%emt 0:17:30]} 16. Kf2 {[%emt 0:05:30]} Nc2 {[%emt 0:12:24]} 17. Nxc3 {[%emt 0:07:57]} Nxa1 {[%emt 0:00:38]} 18. g4 {[%emt 0:00:03]} Bg6 {[%emt 0:06:49]} 19. Bg2 {[%emt 0:00:31]} Nc2 {[%emt 0:00:12]} 20. Bxb7 {[%emt 0:00:39]} Rb8 {[%emt 0:02:37]} 21. c6 {[%emt 0:00:56]} Nxe3 {[%emt 0:00:23]} 22. Kxe3 {[%emt 0:00:05]} Ke7 {[%emt 0:01:30]} 23. Na4 {[%emt 0:06:28]} Rhc8 {[%emt 0:00:52]} 24. Rd1 {[%emt 0:01:29]} Rc7 {[%emt 0:00:24]} 25. Nc5 {[%emt 0:05:20]} Rd8 {[%emt 0:00:24]} 26. Rxd8 {[%emt 0:06:55]} Kxd8 {[%emt 0:00:32]} 27. Na6 {[%emt 0:00:30]} f6 {[%emt 0:00:30]} 28. Kd4 {[%emt 0:00:30]} h5 {[%emt 0:00:30]} 29. Kc5 {[%emt 0:00:30]} Be4 {[%emt 0:00:30]} 30. Kd6 {[%emt 0:00:30]} Rxb7 {[%emt 0:00:30]} 31. cxb7 {[%emt 0:00:30]} Bxb7 {[%emt 0:00:30]} 32. Nc5 {[%emt 0:00:30]} Bf3 {[%emt 0:00:30]} 33. Nxe6+ {[%emt 0:00:30]} Kc8 {[%emt 0:00:30]} 34. gxh5 {[%emt 0:00:30]} fxe5 {[%emt 0:00:30]} 35. Nxg7 {[%emt 0:00:30]} 1-0

[Event "World Junior U20 Open 2018"]
[Site "Gebze"]
[Date "2018.09.07"]
[Round "3.78"]
[White "Ozturk, Efe Hakan"]
[Black "Kara, Yanki"]
[Result "1-0"]
[ECO "A04"]
[WhiteElo "2065"]
[BlackElo "2262"]
[Annotator "NA"]
[PlyCount "163"]
[EventDate "2018.09.05"]
[EventType "swiss"]
[EventCountry "TUR"]
[SourceTitle "playchess.com"]
[Source "ChessBase"]
[SourceQuality "1"]
[TimeControl "40/5400+30:1800+30"]

1. Nf3 {[%emt 0:00:30]} c5 {[%emt 0:00:30]} 2. g3 {[%emt 0:00:30]} Nc6 {[%emt 0:00:00]} 3. d4 {[%emt 0:01:30]} cxd4 {[%emt 0:00:00]} 4. Nxd4 {[%emt 0:00:00]} g6 {[%emt 0:01:30]} 5. Bg2 {[%emt 0:03:00]} Bg7 {[%emt 0:00:30]} 6. Nxc6 {[%emt 0:01:30]} bxc6 {[%emt 0:00:30]} 7. O-O {[%emt 0:00:00]} Rb8 {[%emt 0:02:30] LiveBook: 95 Games} 8. Nd2 {[%emt 0:11:00]} Nf6 {[%emt 0:01:30]} 9. Nb3 {[%emt 0:02:30]} Bb7 {[%emt 0:03:30]} 10. Be3 {[%emt 0:02:30]} Ra8 {[%emt 0:03:30]} 11. a4 {[%emt 0:05:30]} O-O {[%emt 0:04:30]} 12. a5 {[%emt 0:01:30]} Qc7 {[%emt 0:01:30]} 13. a6 {[%emt 0:10:30]} Bc8 {[%emt 0:00:00]} 14. Qd2 $11 {[%emt 0:04:30]} Ne8 {[%emt 0:10:00]} 15. Ra2 {[%emt 0:13:30]} d6 {[%emt 0:02:30]} 16. Qa5 {[%emt 0:01:30]} Bd7 {[%emt 0:00:30]} 17. Rfa1 {[%emt 0:10:30]} Rc8 {[%emt 0:12:30]} 18. Qxc7 {[%emt 0:02:30]} Rxc7 {[%emt 0:00:00]} 19. Bb6 {[%emt 0:00:30]} axb6 {[%emt 0:00:00]} 20. a7 {[%emt 0:00:30]} Rc8 {[%emt 0:00:30]} 21. a8=Q {[%emt 0:00:30]} Rxa8 {[%emt 0:00:30]} 22. Rxa8 {[%emt 0:00:00]} Bxb2 {[%emt 0:00:00]} 23. R1a6 {[%emt 0:01:00]} Bg7 {[%emt 0:13:00]} 24. Rxb6 {[%emt 0:03:30]} c5 {[%emt 0:00:30]} 25. Ra7 {[%emt 0:03:30]} Nf6 {[%emt 0:00:30]} 26. Na5 {[%emt 0:00:30]} Re8 {[%emt 0:03:30]} 27. Bc6 {[%emt 0:06:33]} Bxc6 {[%emt 0:02:30]} 28. Nxc6 {[%emt 0:00:30]} Kf8 {[%emt 0:00:30]} 29. Rbb7 {[%emt 0:00:30]} Ng8 {[%emt 0:00:30]} 30. e4 {[%emt 0:00:30]} g5 {[%emt 0:00:30]} 31. e5 {[%emt 0:00:30]} dxe5 {[%emt 0:00:30]} 32. Ra5 {[%emt 0:06:40]} Nf6 {[%emt 0:07:30]} 33. Rxc5 {[%emt 0:01:20]} Ne4 {[%emt 0:00:30]} 34. Ra5 {[%emt 0:01:25]} Nd6 {[%emt 0:00:30]} 35. Rd7 {[%emt 0:01:29]} Bf6 {[%emt 0:02:30]} 36. Nxe5 {[%emt 0:03:00]} Rc8 {[%emt 0:00:30]} 37. Ng4 {[%emt 0:00:16]} Bd4 {[%emt 0:00:30]} 38. c3 {[%emt 0:02:18]} Bxc3 {[%emt 0:13:13]} 39. Rxg5 {[%emt 0:00:41]} Bd4 {[%emt 0:02:29]} 40. Rd5 {[%emt 0:00:00]} Rc1+ {[%emt 0:00:00]} 41. Kg2 {[%emt 0:01:48]} Bb6 {[%emt 0:06:18]} 42. Re5 {[%emt 0:01:30]} f5 {[%emt 0:00:30]} 43. Rexe7 {[%emt 0:12:32]} fxg4 {[%emt 0:00:30]} 44. Rxh7 {[%emt 0:00:00]} Kg8 {[%emt 0:00:30]} 45. Rxd6 {[%emt 0:00:42]} Kxh7 {[%emt 0:00:30]} 46. Rxb6 {[%emt 0:00:09]} Rc4 {[%emt 0:00:00]} 47. h3 {[%emt 0:00:15]} gxh3+ {[%emt 0:00:00]} 48. Kxh3 {[%emt 0:00:10]} Ra4 {[%emt 0:00:00]} 49. f4 {[%emt 0:00:13]} Kg7 {[%emt 0:00:00]} 50. Kg4 {[%emt 0:00:12]} Ra3 {[%emt 0:00:00]} 51. Kh4 {[%emt 0:00:43]} Rf3 {[%emt 0:00:00]} 52. Ra6 {[%emt 0:00:47]} Kh7 {[%emt 0:00:30]} 53. Kg4 {[%emt 0:00:26]} Rb3 {[%emt 0:00:00]} 54. f5 {[%emt 0:00:00]} Kg7 {[%emt 0:00:00]} 55. Kf4 {[%emt 0:00:28]} Rb7 {[%emt 0:00:30]} 56. Kg5 {[%emt 0:00:00]} Kf7 {[%emt 0:00:00]} 57. g4 {[%emt 0:00:37]} Kg7 {[%emt 0:00:00]} 58. Kh5 {[%emt 0:00:48]} Rb1 {[%emt 0:00:00]} 59. f6+ {[%emt 0:01:26]} Kf7 {[%emt 0:00:00]} 60. g5 {[%emt 0:00:40]} Rh1+ {[%emt 0:00:30]} 61. Kg4 {[%emt 0:00:00]} Rg1+ {[%emt 0:00:30]} 62. Kf5 {[%emt 0:02:26]} Rf1+ {[%emt 0:00:30]} 63. Ke4 {[%emt 0:03:07]} Re1+ {[%emt 0:01:30]} 64. Kf3 {[%emt 0:01:00]} Rf1+ {[%emt 0:00:30]} 65. Kg2 {[%emt 0:00:43]} Rf5 {[%emt 0:00:30]} 66. Ra7+ {[%emt 0:00:30]} Kg8 {[%emt 0:00:00]} 67. Rg7+ {[%emt 0:00:04]} Kh8 {[%emt 0:00:00]} 68. Rg6 {[%emt 0:01:21]} Kh7 {[%emt 0:00:00]} 69. Rh6+ {[%emt 0:00:30]} Kg8 {[%emt 0:00:00]} 70. Rh5 {[%emt 0:00:00]} Ra5 {[%emt 0:00:00]} 71. Kf3 {[%emt 0:00:07]} Ra3+ {[%emt 0:00:00]} 72. Kf4 {[%emt 0:00:34]} Ra4+ {[%emt 0:00:30]} 73. Kf5 {[%emt 0:00:00]} Ra5+ {[%emt 0:00:00]} 74. Kg6 {[%emt 0:00:00]} Ra6 {[%emt 0:00:00]} 75. Rh1 {[%emt 0:00:17]} Rb6 {[%emt 0:00:30]} 76. Ra1 {[%emt 0:00:30]} Rb8 {[%emt 0:00:00]} 77. f7+ {[%emt 0:00:55]} Kf8 {[%emt 0:00:00]} 78. Rf1 {[%emt 0:03:00]} Rb2 {[%emt 0:01:30]} 79. Rf4 {[%emt 0:01:01]} Re2 {[%emt 0:00:30]} 80. Ra4 {[%emt 0:01:15]} Re6+ {[%emt 0:00:00]} 81. Kf5 {[%emt 0:00:30]} Rf6+ {[%emt 0:00:00]} 82. gxf6 {[%emt 0:00:19]} 1-0

[Event "World Junior U20 Open 2018"]
[Site "Gebze"]
[Date "2018.09.07"]
[Round "3.79"]
[White "Ozgur, Tibet Kagan"]
[Black "Yilmaz, Goktan"]
[Result "1-0"]
[ECO "D02"]
[WhiteElo "2056"]
[BlackElo "2237"]
[Annotator "NA"]
[PlyCount "159"]
[EventDate "2018.09.05"]
[EventType "swiss"]
[EventCountry "TUR"]
[SourceTitle "playchess.com"]
[Source "ChessBase"]
[SourceQuality "1"]
[TimeControl "40/5400+30:1800+30"]

1. d4 {[%emt 0:00:30]} Nf6 {[%emt 0:00:30]} 2. Nf3 {[%emt 0:00:00]} d5 {[%emt 0:00:30]} 3. Bf4 {[%emt 0:00:00]} c5 {[%emt 0:00:30]} 4. e3 {[%emt 0:01:30]} Nc6 {[%emt 0:00:00]} 5. c3 {[%emt 0:01:30]} Qb6 {[%emt 0:00:00]} 6. Qb3 {[%emt 0:04:30]} c4 {[%emt 0:00:30]} 7. Qxb6 {[%emt 0:00:30] LiveBook: 195 Games} axb6 {[%emt 0:00:00]} 8. Na3 {[%emt 0:06:30]} e6 {[%emt 0:17:00] D02: Damenbauernspiele} (8... Bf5 9. Nb5 Kd7 10. Be2 e6 11. O-O Ra5 12. a4 Bc2 13. Ng5 Bg6 14. Rfc1 Be7 15. Nf3 Rha8 16. Nc7 Rc8 {0-1 (35) Javakhishvili,L (2465)-Girya,O (2482) Tbilisi 2018}) 9. Nb5 {[%emt 0:04:30]} Ra5 {[%emt 0:02:30]} 10. Nd6+ {[%emt 0:03:30]} Bxd6 {[%emt 0:00:30]} 11. Bxd6 {[%emt 0:00:00]} Ne4 {[%emt 0:00:30]} 12. Bc7 {[%emt 0:15:00]} Kd7 {[%emt 0:01:30]} 13. Bg3 $146 {[%emt 0:02:30]} ({Vorgänger:} 13. Bf4 f6 14. g4 g5 15. Bg3 b5 16. Nd2 Nxg3 17. hxg3 {½-½ (40) Fabiani,J (2378)-Sacerdotali,S (2282) IECG email 2002}) 13... Nxg3 {[%emt 0:03:30]} 14. hxg3 {[%emt 0:00:30]} f6 {[%emt 0:02:30]} 15. a3 {[%emt 0:04:30]} Kd6 {[%emt 0:03:30]} 16. O-O-O {[%emt 0:05:30]} Bd7 {[%emt 0:00:30]} 17. e4 {[%emt 0:03:30]} b5 {[%emt 0:03:30]} 18. Re1 {[%emt 0:06:30]} dxe4 {[%emt 0:00:30]} 19. Rxe4 {[%emt 0:00:30]} Be8 {[%emt 0:02:30]} 20. Nd2 {[%emt 0:15:30]} Bg6 {[%emt 0:04:30]} 21. Re1 {[%emt 0:00:30]} Raa8 {[%emt 0:00:30]} 22. Be2 {[%emt 0:04:21]} e5 $11 {[%emt 0:16:30]} 23. dxe5+ {[%emt 0:00:01]} Nxe5 {[%emt 0:00:30]} 24. f4 {[%emt 0:01:17]} Nd7 {[%emt 0:02:30]} 25. Bh5 {[%emt 0:08:04]} Bd3 {[%emt 0:07:30]} 26. Ne4+ {[%emt 0:03:21]} Bxe4 {[%emt 0:02:30]} 27. Rxe4 {[%emt 0:00:02]} Nc5 {[%emt 0:00:30]} 28. Rd4+ {[%emt 0:02:19]} Kc7 {[%emt 0:00:30]} 29. Rd5 {[%emt 0:02:03]} Kb6 {[%emt 0:02:30]} 30. Kc2 {[%emt 0:01:49]} Rad8 {[%emt 0:00:30]} 31. Rhd1 {[%emt 0:00:49]} Rxd5 {[%emt 0:03:30]} 32. Rxd5 {[%emt 0:00:03]} Nd3 {[%emt 0:03:57]} 33. Rd7 {[%emt 0:02:54]} g6 {[%emt 0:03:04]} 34. Be2 {[%emt 0:00:21]} Nc5 {[%emt 0:02:16]} 35. Rd6+ {[%emt 0:00:51]} Kc7 {[%emt 0:00:08]} 36. Rxf6 {[%emt 0:01:33]} Re8 {[%emt 0:00:01]} 37. Bg4 {[%emt 0:00:40]} Re1 {[%emt 0:00:22]} 38. Rf7+ {[%emt 0:00:17]} Kb6 {[%emt 0:00:51]} 39. Rf6+ {[%emt 0:00:19]} Ka7 {[%emt 0:00:45]} 40. Rd6 {[%emt 0:00:00]} Rf1 {[%emt 0:00:00]} 41. Rd1 {[%emt 0:07:56]} Rf2+ {[%emt 0:05:36]} 42. Rd2 {[%emt 0:00:30]} Rf1 {[%emt 0:03:30]} 43. Rd1 {[%emt 0:01:30]} Rf2+ {[%emt 0:00:30]} 44. Rd2 {[%emt 0:00:30]} Rxd2+ {[%emt 0:01:30]} 45. Kxd2 {[%emt 0:00:00]} Kb6 {[%emt 0:02:30]} 46. Bf3 {[%emt 0:01:00]} Kc7 {[%emt 0:00:30]} 47. g4 {[%emt 0:07:35]} Kd6 {[%emt 0:01:30]} 48. g5 {[%emt 0:02:06]} Nd3 {[%emt 0:01:30]} 49. Ke3 {[%emt 0:02:59]} Nxb2 {[%emt 0:01:30]} 50. Bxb7 {[%emt 0:04:35]} Na4 {[%emt 0:00:30]} 51. Kd4 {[%emt 0:01:27]} Nc5 {[%emt 0:00:00]} 52. Bc8 {[%emt 0:01:18]} Nd3 {[%emt 0:02:00]} 53. Ba6 {[%emt 0:05:21]} Nxf4 {[%emt 0:03:30]} 54. Bxb5 {[%emt 0:00:30]} Ne6+ {[%emt 0:00:00]} 55. Kxc4 {[%emt 0:00:10]} Nxg5 {[%emt 0:00:00]} 56. Kd3 {[%emt 0:01:20]} Ne6 {[%emt 0:00:00]} 57. Ke3 {[%emt 0:00:21]} g5 {[%emt 0:03:00]} 58. Bd3 {[%emt 0:00:27]} h5 {[%emt 0:00:30]} 59. Be2 {[%emt 0:00:29]} h4 {[%emt 0:00:30]} 60. Bf3 {[%emt 0:00:47]} Kc5 {[%emt 0:01:30]} 61. Ke4 {[%emt 0:00:31]} Kc4 {[%emt 0:00:30]} 62. Kf5 {[%emt 0:00:21]} Nf4 {[%emt 0:01:30]} 63. a4 {[%emt 0:00:35]} h3 {[%emt 0:01:30]} 64. g4 {[%emt 0:00:37]} Nd5 {[%emt 0:01:30]} 65. a5 {[%emt 0:00:26]} Nxc3 {[%emt 0:01:30]} 66. a6 {[%emt 0:00:47]} Nb5 {[%emt 0:00:00]} 67. Kxg5 {[%emt 0:00:04]} Kc5 {[%emt 0:00:00]} 68. Kh4 {[%emt 0:00:29]} h2 {[%emt 0:00:30]} 69. Kg3 {[%emt 0:00:34]} Kb6 {[%emt 0:02:30]} 70. Kxh2 {[%emt 0:00:11]} Nd6 {[%emt 0:00:30]} 71. Be2 {[%emt 0:00:29]} Nc8 {[%emt 0:00:30]} 72. Kg3 {[%emt 0:00:27]} Kc5 {[%emt 0:00:30]} 73. Kf4 {[%emt 0:00:20]} Kd6 {[%emt 0:00:00]} 74. Kf5 {[%emt 0:00:24]} Ke7 {[%emt 0:00:00]} 75. Kg6 {[%emt 0:00:00]} Ke6 {[%emt 0:00:00]} 76. g5 {[%emt 0:00:31]} Ne7+ {[%emt 0:00:00]} 77. Kh7 {[%emt 0:00:24]} Nc6 {[%emt 0:00:30]} 78. g6 {[%emt 0:00:00]} Kf6 {[%emt 0:00:00]} 79. g7 {[%emt 0:00:14]} Ne7 {[%emt 0:00:00]} 80. a7 {[%emt 0:00:04]} 1-0

[Event "World Junior U20 Open 2018"]
[Site "Gebze"]
[Date "2018.09.07"]
[Round "3.80"]
[White "Baylav, Can"]
[Black "Sezdbekov, Ruslan"]
[Result "1-0"]
[ECO "E11"]
[WhiteElo "2026"]
[BlackElo "2160"]
[Annotator "NA"]
[PlyCount "61"]
[EventDate "2018.09.05"]
[EventType "swiss"]
[EventCountry "TUR"]
[SourceTitle "playchess.com"]
[Source "ChessBase"]
[SourceQuality "1"]
[TimeControl "40/5400+30:1800+30"]

1. d4 {[%emt 0:00:30]} Nf6 {[%emt 0:00:30]} 2. Nf3 {[%emt 0:00:30]} e6 {[%emt 0:00:00]} 3. c4 {[%emt 0:00:00]} Bb4+ {[%emt 0:00:00]} 4. Nbd2 {[%emt 0:00:00]} b6 {[%emt 0:00:30]} 5. a3 {[%emt 0:00:30]} Bxd2+ {[%emt 0:00:30]} 6. Qxd2 {[%emt 0:00:30]} h6 {[%emt 0:01:30]} 7. e3 {[%emt 0:00:30]} Bb7 {[%emt 0:00:30]} 8. Bd3 {[%emt 0:01:30]} d6 {[%emt 0:00:30]} 9. O-O {[%emt 0:01:30]} O-O {[%emt 0:02:30]} 10. b4 $14 {[%emt 0:00:30]} Nbd7 {[%emt 0:03:30]} 11. Bb2 {[%emt 0:00:30]} Ne4 {[%emt 0:01:30]} 12. Qc2 {[%emt 0:00:30]} f5 {[%emt 0:07:30]} 13. d5 {[%emt 0:01:30]} exd5 {[%emt 0:10:30]} 14. Nd4 {[%emt 0:01:30]} Qe7 {[%emt 0:26:30]} 15. cxd5 {[%emt 0:01:30]} g6 {[%emt 0:08:30]} 16. Ne6 {[%emt 0:01:30]} Bxd5 {[%emt 0:06:30]} 17. Nxc7 {[%emt 0:01:30]} Bb7 {[%emt 0:04:30]} 18. Nxa8 {[%emt 0:01:30]} Bxa8 {[%emt 0:00:00]} 19. f3 {[%emt 0:10:30]} Nef6 {[%emt 0:01:00]} 20. Rae1 {[%emt 0:00:30]} Ne5 {[%emt 0:01:30]} 21. e4 {[%emt 0:02:30]} f4 {[%emt 0:01:30]} 22. Bxe5 {[%emt 0:02:30]} Qxe5 {[%emt 0:00:30]} 23. Bc4+ {[%emt 0:00:30]} Kg7 {[%emt 0:02:05]} 24. Qd3 {[%emt 0:01:30]} Rd8 {[%emt 0:06:08]} 25. Rd1 {[%emt 0:00:30]} Rc8 {[%emt 0:00:30]} 26. Ba6 {[%emt 0:00:30]} Rd8 {[%emt 0:00:30]} 27. Qd4 {[%emt 0:00:30]} Qe7 {[%emt 0:00:30]} 28. e5 {[%emt 0:05:30]} Nd5 {[%emt 0:06:27]} 29. Rfe1 {[%emt 0:01:30]} dxe5 {[%emt 0:00:37]} 30. Rxe5 {[%emt 0:01:30]} Qf6 {[%emt 0:00:16]} 31. Bc4 {[%emt 0:00:30]} 1-0

[Event "World Junior U20 Open 2018"]
[Site "Gebze"]
[Date "2018.09.07"]
[Round "3.81"]
[White "Ismayilov, Muhammad"]
[Black "Daghan, Devran"]
[Result "1-0"]
[ECO "B51"]
[WhiteElo "2137"]
[BlackElo "2004"]
[Annotator "NA"]
[PlyCount "81"]
[EventDate "2018.09.05"]
[EventType "swiss"]
[EventCountry "TUR"]
[SourceTitle "playchess.com"]
[Source "ChessBase"]
[SourceQuality "1"]
[TimeControl "40/5400+30:1800+30"]

1. e4 {[%emt 0:00:30]} c5 {[%emt 0:00:30]} 2. Nf3 {[%emt 0:00:00]} d6 {[%emt 0:00:30]} 3. d4 {[%emt 0:00:00]} cxd4 {[%emt 0:00:00]} 4. Qxd4 {[%emt 0:00:30]} e5 {[%emt 0:01:00]} 5. Bb5+ {[%emt 0:03:30]} Nd7 {[%emt 0:04:30]} 6. Qd3 {[%emt 0:05:30]} h6 {[%emt 0:07:30]} 7. Be3 {[%emt 0:03:30]} Be7 {[%emt 0:06:30]} 8. Nc3 {[%emt 0:12:30]} Ngf6 {[%emt 0:11:30]} 9. Nd2 {[%emt 0:03:30]} O-O {[%emt 0:05:30]} 10. Nc4 {[%emt 0:06:30]} Qc7 {[%emt 0:03:30]} 11. Bxd7 {[%emt 0:07:30]} Bxd7 {[%emt 0:06:30]} 12. O-O-O {[%emt 0:07:30]} Be6 {[%emt 0:19:30]} 13. Nd5 {[%emt 0:04:30]} Bxd5 {[%emt 0:00:30]} 14. exd5 {[%emt 0:03:30]} Rac8 {[%emt 0:14:04]} 15. Na3 {[%emt 0:00:30]} a6 {[%emt 0:00:26]} 16. Kb1 {[%emt 0:03:30]} b5 {[%emt 0:01:19]} 17. c3 {[%emt 0:00:30]} Nd7 {[%emt 0:01:15]} 18. g4 {[%emt 0:05:30]} Nc5 {[%emt 0:05:39]} 19. Qd2 {[%emt 0:02:30]} Rb8 {[%emt 0:04:20]} 20. Nc2 {[%emt 0:11:11]} a5 {[%emt 0:01:07]} 21. a3 {[%emt 0:03:27]} Na6 {[%emt 0:02:50]} 22. Rhg1 {[%emt 0:07:27]} b4 {[%emt 0:01:28]} 23. cxb4 {[%emt 0:01:03]} axb4 {[%emt 0:00:04]} 24. g5 {[%emt 0:00:56]} bxa3 {[%emt 0:01:30]} 25. Nxa3 {[%emt 0:00:10]} Bxg5 {[%emt 0:00:00]} 26. Bxg5 {[%emt 0:00:46]} hxg5 {[%emt 0:00:00]} 27. Rxg5 {[%emt 0:01:04]} f6 {[%emt 0:00:26]} 28. Rh5 {[%emt 0:02:47]} Qf7 {[%emt 0:01:25]} 29. Rh3 {[%emt 0:00:45]} Nc5 {[%emt 0:00:29]} 30. Rg1 {[%emt 0:00:36]} Ne4 {[%emt 0:00:30]} 31. Qh6 {[%emt 0:00:42]} Rxb2+ {[%emt 0:00:56]} 32. Kxb2 {[%emt 0:00:17]} Qb7+ {[%emt 0:00:00]} 33. Ka1 {[%emt 0:00:42]} Ng5 {[%emt 0:00:42]} 34. Rxg5 {[%emt 0:00:19]} fxg5 {[%emt 0:00:06]} 35. Qh8+ {[%emt 0:00:51]} Kf7 {[%emt 0:00:30]} 36. Rf3+ {[%emt 0:00:00]} Kg6 {[%emt 0:00:00]} 37. Qxf8 {[%emt 0:00:00]} Qd7 {[%emt 0:00:10]} 38. Qg8 {[%emt 0:00:20]} e4 {[%emt 0:01:33]} 39. Rf8 {[%emt 0:00:23]} Qa4 {[%emt 0:00:56]} 40. Qe6+ {[%emt 0:00:00]} Kh7 {[%emt 0:00:00]} 41. Qf5+ {[%emt 0:01:14]} 1-0

[Event "World Junior U20 Open 2018"]
[Site "Gebze"]
[Date "2018.09.07"]
[Round "3.82"]
[White "Gunduz, Umut Erdem"]
[Black "Beukema, Christiaan"]
[Result "1-0"]
[ECO "C52"]
[WhiteElo "2119"]
[BlackElo "1904"]
[Annotator "NA"]
[PlyCount "49"]
[EventDate "2018.09.05"]
[EventType "swiss"]
[EventCountry "TUR"]
[SourceTitle "playchess.com"]
[Source "ChessBase"]
[SourceQuality "1"]
[TimeControl "40/5400+30:1800+30"]

1. e4 {[%emt 0:00:30]} e5 {[%emt 0:00:30]} 2. Nf3 {[%emt 0:00:30]} Nc6 {[%emt 0:00:30]} 3. Bc4 {[%emt 0:00:30]} Bc5 {[%emt 0:00:00]} 4. b4 {[%emt 0:00:00]} Bxb4 {[%emt 0:09:00]} 5. c3 {[%emt 0:01:00]} Ba5 {[%emt 0:00:30]} 6. d4 {[%emt 0:03:30]} exd4 {[%emt 0:00:30]} 7. Qb3 {[%emt 0:01:30]} Qf6 {[%emt 0:04:30]} 8. O-O {[%emt 0:06:30]} Bb6 {[%emt 0:06:30]} 9. e5 {[%emt 0:09:30]} Qg6 {[%emt 0:01:30]} 10. cxd4 {[%emt 0:02:30]} Na5 {[%emt 0:01:30]} 11. Qa4 {[%emt 0:02:30]} Nxc4 {[%emt 0:01:30]} 12. Qxc4 {[%emt 0:00:30]} Nh6 {[%emt 0:12:30]} 13. Ba3 {[%emt 0:01:30]} Nf5 {[%emt 0:21:30]} 14. Nc3 {[%emt 0:02:30]} d6 {[%emt 0:02:30]} 15. exd6 {[%emt 0:04:30]} cxd6 {[%emt 0:09:30]} 16. Rfe1+ {[%emt 0:01:30]} Kd8 {[%emt 0:07:47]} 17. Qd5 {[%emt 0:02:30]} Bd7 {[%emt 0:03:37]} 18. Qb3 {[%emt 0:24:30]} Rc8 {[%emt 0:02:39]} 19. Rad1 {[%emt 0:13:30]} Bc6 {[%emt 0:08:37]} 20. Nd5 {[%emt 0:01:32]} Bc7 {[%emt 0:01:30]} 21. Nf4 {[%emt 0:01:31]} Bxf3 {[%emt 0:02:46]} 22. Nxg6 {[%emt 0:00:37]} Bxd1 {[%emt 0:00:07]} 23. Qxf7 {[%emt 0:00:50]} hxg6 {[%emt 0:00:16]} 24. Bc1 {[%emt 0:00:27]} Rb8 {[%emt 0:01:37]} 25. Bg5+ {[%emt 0:00:07]} 1-0